[Event "*** Titled Tuesday Blitz"]
[Site "Chess.com"]
[Date "2020.04.14"]
[Round "5"]
[White "Mbneu"]
[Black "littleozy"]
[Result "0-1"]
[WhiteElo "2211"]
[BlackElo "2413"]
[TimeControl "180+1"]
[EndTime "10:51:31 PDT"]
[Termination "littleozy won on time"]

1. d4 {[%clk 0:03:00.9]} 1... Nf6 {[%clk 0:02:54.4]} 2. c4 {[%clk 0:02:59.8]}
2... a6 {[%clk 0:02:53.8]} 3. Nc3 {[%clk 0:02:57.4]} 3... e6 {[%clk 0:02:53.7]}
4. a3 {[%clk 0:02:55]} 4... d5 {[%clk 0:02:52.3]} 5. Nf3 {[%clk 0:02:49.9]} 5...
dxc4 {[%clk 0:02:49.7]} 6. e4 {[%clk 0:02:49.5]} 6... b5 {[%clk 0:02:49.7]} 7.
e5 {[%clk 0:02:48.4]} 7... Nd5 {[%clk 0:02:49.5]} 8. Ng5 {[%clk 0:02:48.2]} 8...
Be7 {[%clk 0:02:36.3]} 9. Qh5 {[%clk 0:02:46.5]} 9... Bxg5 {[%clk 0:02:28.6]}
10. Bxg5 {[%clk 0:02:44.9]} 10... Qd7 {[%clk 0:02:27]} 11. Be2 {[%clk
0:02:34.3]} 11... Bb7 {[%clk 0:02:24.3]} 12. Bf3 {[%clk 0:02:25.2]} 12... c5
{[%clk 0:02:01.2]} 13. Ne4 {[%clk 0:02:16.8]} 13... cxd4 {[%clk 0:01:51.6]} 14.
Nd6+ {[%clk 0:02:04]} 14... Kf8 {[%clk 0:01:51.8]} 15. O-O {[%clk 0:01:19.2]}
15... Nc6 {[%clk 0:01:50.5]} 16. Bxd5 {[%clk 0:01:17.2]} 16... exd5 {[%clk
0:01:50.7]} 17. f4 {[%clk 0:01:16.4]} 17... d3 {[%clk 0:01:29.6]} 18. Rf3 {[%clk
0:01:01.4]} 18... Nd4 {[%clk 0:01:26.4]} 19. Rh3 {[%clk 0:00:57.7]} 19... h6
{[%clk 0:01:15.2]} 20. Qh4 {[%clk 0:00:48.4]} 20... Nf5 {[%clk 0:01:09.8]} 21.
Qf2 {[%clk 0:00:45]} 21... Nxd6 {[%clk 0:01:06.8]} 22. exd6 {[%clk 0:00:42.7]}
22... Qxd6 {[%clk 0:01:07.7]} 23. f5 {[%clk 0:00:40.5]} 23... Re8 {[%clk
0:00:56.9]} 24. f6 {[%clk 0:00:40.1]} 24... Kg8 {[%clk 0:00:40.7]} 25. fxg7
{[%clk 0:00:38.5]} 25... Rh7 {[%clk 0:00:40.5]} 26. Bf6 {[%clk 0:00:34.2]} 26...
Qe6 {[%clk 0:00:33.5]} 27. Rf1 {[%clk 0:00:21.1]} 27... d2 {[%clk 0:00:33.4]}
28. Qxd2 {[%clk 0:00:14.9]} 28... Qe2 {[%clk 0:00:26.5]} 29. Qd4 {[%clk
0:00:12.4]} 29... h5 {[%clk 0:00:25.8]} 30. Rhf3 {[%clk 0:00:09.7]} 30... Qe4
{[%clk 0:00:25.2]} 31. Qb6 {[%clk 0:00:08.3]} 31... d4 {[%clk 0:00:25]} 32. Qxd4
{[%clk 0:00:06.1]} 32... Qxd4+ {[%clk 0:00:24.3]} 33. Bxd4 {[%clk 0:00:06.3]}
33... Bxf3 {[%clk 0:00:24.9]} 34. Rxf3 {[%clk 0:00:06.7]} 34... Rh6 {[%clk
0:00:25]} 35. Kf2 {[%clk 0:00:05.9]} 35... Rd6 {[%clk 0:00:24.9]} 36. Bc3 {[%clk
0:00:06.2]} 36... Rd3 {[%clk 0:00:24.3]} 37. Rf5 {[%clk 0:00:03.7]} 37... Red8
{[%clk 0:00:14.9]} 38. Rxh5 {[%clk 0:00:03.4]} 38... Rxc3 {[%clk 0:00:14.7]} 39.
bxc3 {[%clk 0:00:03.1]} 39... Rd2+ {[%clk 0:00:14.9]} 40. Ke1 {[%clk 0:00:02.5]}
40... Rd3 {[%clk 0:00:14.6]} 41. Rh3 {[%clk 0:00:02.2]} 41... Rxh3 {[%clk
0:00:12.1]} 42. gxh3 {[%clk 0:00:02.4]} 42... Kxg7 {[%clk 0:00:13]} 43. Kf2
{[%clk 0:00:02.7]} 43... Kf6 {[%clk 0:00:13.1]} 44. Kf3 {[%clk 0:00:03.2]} 44...
Kf5 {[%clk 0:00:13.1]} 45. h4 {[%clk 0:00:02.4]} 45... a5 {[%clk 0:00:13.2]} 46.
h3 {[%clk 0:00:01.9]} 46... f6 {[%clk 0:00:10]} 0-1

[Event "*** Titled Tuesday Blitz"]
[Site "Chess.com"]
[Date "2020.04.14"]
[Round "5"]
[White "Teidi96"]
[Black "tamarozi99"]
[Result "1-0"]
[WhiteElo "2187"]
[BlackElo "1952"]
[TimeControl "180+1"]
[EndTime "10:51:31 PDT"]
[Termination "Teidi96 won on time"]

1. e4 {[%clk 0:02:53.1]} 1... c5 {[%clk 0:02:59.8]} 2. Nf3 {[%clk 0:02:52.6]}
2... Nc6 {[%clk 0:02:59.4]} 3. d4 {[%clk 0:02:50.6]} 3... cxd4 {[%clk
0:02:59.1]} 4. Nxd4 {[%clk 0:02:51.5]} 4... g6 {[%clk 0:02:59]} 5. c4 {[%clk
0:02:50.6]} 5... d6 {[%clk 0:02:57]} 6. Nc3 {[%clk 0:02:46.9]} 6... Nf6 {[%clk
0:02:56.3]} 7. Be2 {[%clk 0:02:44.1]} 7... Nxd4 {[%clk 0:02:55.2]} 8. Qxd4
{[%clk 0:02:42.9]} 8... Bg7 {[%clk 0:02:55.9]} 9. O-O {[%clk 0:02:41]} 9... O-O
{[%clk 0:02:56.4]} 10. Qd3 {[%clk 0:02:37.4]} 10... a5 {[%clk 0:02:53.7]} 11.
Be3 {[%clk 0:02:14.5]} 11... a4 {[%clk 0:02:49.4]} 12. Rab1 {[%clk 0:02:02.3]}
12... Qa5 {[%clk 0:02:38.8]} 13. b4 {[%clk 0:01:41.6]} 13... axb3 {[%clk
0:02:36.7]} 14. axb3 {[%clk 0:01:42.5]} 14... Be6 {[%clk 0:02:26.8]} 15. f3
{[%clk 0:01:38.9]} 15... Nd7 {[%clk 0:02:24.4]} 16. Nd5 {[%clk 0:01:32]} 16...
Qd8 {[%clk 0:02:04.3]} 17. b4 {[%clk 0:01:26]} 17... f5 {[%clk 0:02:03.9]} 18.
Nf4 {[%clk 0:01:00]} 18... fxe4 {[%clk 0:01:43.6]} 19. fxe4 {[%clk 0:00:51.2]}
19... Bf7 {[%clk 0:01:43]} 20. Nd5 {[%clk 0:00:35.6]} 20... Rc8 {[%clk
0:01:26.4]} 21. Rbc1 {[%clk 0:00:28.1]} 21... Ne5 {[%clk 0:01:24.4]} 22. Qb3
{[%clk 0:00:25.2]} 22... e6 {[%clk 0:01:10]} 23. Nb6 {[%clk 0:00:23.8]} 23...
Rc6 {[%clk 0:01:07.5]} 24. c5 {[%clk 0:00:22.8]} 24... dxc5 {[%clk 0:00:53.9]}
25. bxc5 {[%clk 0:00:23.7]} 25... Qe7 {[%clk 0:00:35.3]} 26. Bb5 {[%clk
0:00:22]} 26... Rc7 {[%clk 0:00:20.9]} 27. Bf4 {[%clk 0:00:21.4]} 27... g5
{[%clk 0:00:17.5]} 28. Be3 {[%clk 0:00:20.2]} 28... h6 {[%clk 0:00:17.2]} 29. h3
{[%clk 0:00:18.3]} 29... Bg6 {[%clk 0:00:15.7]} 30. Qb4 {[%clk 0:00:16.1]} 30...
Nc6 {[%clk 0:00:12.1]} 31. Rxf8+ {[%clk 0:00:15.3]} 31... Kxf8 {[%clk
0:00:11.3]} 32. Bxc6 {[%clk 0:00:15.2]} 32... Rxc6 {[%clk 0:00:10]} 33. Rd1
{[%clk 0:00:12.3]} 33... Be8 {[%clk 0:00:06.4]} 34. Qa3 {[%clk 0:00:10.1]} 34...
Kg8 {[%clk 0:00:04.4]} 35. Qb4 {[%clk 0:00:09.5]} 35... Kh7 {[%clk 0:00:03.6]}
36. Rf1 {[%clk 0:00:09.1]} 36... Be5 {[%clk 0:00:02.9]} 37. Bf2 {[%clk
0:00:08.7]} 37... Bc7 {[%clk 0:00:02.5]} 38. Be3 {[%clk 0:00:06.8]} 38... Bg6
{[%clk 0:00:02.5]} 39. Qb5 {[%clk 0:00:06.3]} 39... Bxb6 {[%clk 0:00:01.8]} 40.
cxb6 {[%clk 0:00:05.7]} 40... Bxe4 {[%clk 0:00:01.5]} 41. Qe5 {[%clk 0:00:05.1]}
41... Bg6 {[%clk 0:00:01.8]} 42. Qb8 {[%clk 0:00:04.8]} 42... Rxb6 {[%clk
0:00:01.3]} 43. Bxb6 {[%clk 0:00:03.9]} 1-0

[Event "*** Titled Tuesday Blitz"]
[Site "Chess.com"]
[Date "2020.04.14"]
[Round "5"]
[White "Godzillator"]
[Black "picturesquecheck"]
[Result "0-1"]
[WhiteElo "2354"]
[BlackElo "2219"]
[TimeControl "180+1"]
[EndTime "10:51:32 PDT"]
[Termination "picturesquecheck won on time"]

1. d4 {[%clk 0:03:00.9]} 1... Nf6 {[%clk 0:02:59.4]} 2. c4 {[%clk 0:03:01.2]}
2... e6 {[%clk 0:02:53.9]} 3. Nc3 {[%clk 0:03:01.4]} 3... d5 {[%clk 0:02:54]} 4.
cxd5 {[%clk 0:03:01.1]} 4... exd5 {[%clk 0:02:46.3]} 5. Bg5 {[%clk 0:03:01]}
5... c6 {[%clk 0:02:41.4]} 6. Qc2 {[%clk 0:03:00.5]} 6... g6 {[%clk 0:02:40.8]}
7. Bxf6 {[%clk 0:02:59.4]} 7... Qxf6 {[%clk 0:02:39.9]} 8. Nxd5 {[%clk
0:02:59.7]} 8... cxd5 {[%clk 0:02:30]} 9. Qxc8+ {[%clk 0:02:58.4]} 9... Qd8
{[%clk 0:02:30.9]} 10. Qxb7 {[%clk 0:02:53.5]} 10... Nd7 {[%clk 0:02:26.6]} 11.
O-O-O {[%clk 0:02:40]} 11... Rb8 {[%clk 0:01:56.9]} 12. Qxd5 {[%clk 0:02:39.1]}
12... Qb6 {[%clk 0:01:56.9]} 13. Qe4+ {[%clk 0:02:23.8]} 13... Be7 {[%clk
0:01:53.8]} 14. Rd2 {[%clk 0:02:23.1]} 14... Nf6 {[%clk 0:01:39.8]} 15. Qe5
{[%clk 0:02:13.5]} 15... Rc8+ {[%clk 0:01:17.9]} 16. Kb1 {[%clk 0:02:11.5]}
16... Qc6 {[%clk 0:01:13.1]} 17. a3 {[%clk 0:01:34.6]} 17... Qc1+ {[%clk
0:01:11.8]} 18. Ka2 {[%clk 0:01:32.5]} 18... Qxd2 {[%clk 0:01:11.4]} 19. Nf3
{[%clk 0:01:32.4]} 19... Qc1 {[%clk 0:00:50.9]} 20. e3 {[%clk 0:01:32.2]} 20...
O-O {[%clk 0:00:38]} 21. Qxe7 {[%clk 0:01:26.2]} 21... Rc2 {[%clk 0:00:36.2]}
22. Qb4 {[%clk 0:01:23.7]} 22... Rxf2 {[%clk 0:00:34.4]} 23. Bc4 {[%clk
0:00:57.3]} 23... Qxh1 {[%clk 0:00:33.2]} 24. Ne5 {[%clk 0:00:57.5]} 24... Ne4
{[%clk 0:00:29.3]} 25. Qb7 {[%clk 0:00:48.6]} 25... Nd6 {[%clk 0:00:27.2]} 26.
Qb4 {[%clk 0:00:39.2]} 26... Nxc4 {[%clk 0:00:26.8]} 27. Nxc4 {[%clk 0:00:39.5]}
27... Qxg2 {[%clk 0:00:26.5]} 28. Qb5 {[%clk 0:00:30.4]} 28... Rc2 {[%clk
0:00:23.1]} 29. Ne5 {[%clk 0:00:27.8]} 29... Qxh2 {[%clk 0:00:20.4]} 30. Qb3
{[%clk 0:00:22.3]} 30... Qe2 {[%clk 0:00:20.1]} 31. d5 {[%clk 0:00:20]} 31...
Rd2 {[%clk 0:00:20.2]} 32. Nd7 {[%clk 0:00:17.4]} 32... Rxd5 {[%clk 0:00:19.6]}
33. Nf6+ {[%clk 0:00:16.7]} 33... Kg7 {[%clk 0:00:19]} 34. Nxd5 {[%clk 0:00:17]}
34... h5 {[%clk 0:00:18.6]} 35. Qc3+ {[%clk 0:00:16]} 35... Kh7 {[%clk
0:00:18.9]} 36. Nf6+ {[%clk 0:00:15.4]} 36... Kh6 {[%clk 0:00:19.3]} 37. Qd4
{[%clk 0:00:15.7]} 37... Qa6 {[%clk 0:00:16.4]} 38. Qf4+ {[%clk 0:00:15.4]}
38... Kg7 {[%clk 0:00:16.7]} 39. Nd5 {[%clk 0:00:11.1]} 39... Qe6 {[%clk
0:00:16.6]} 40. Qd4+ {[%clk 0:00:11.2]} 40... f6 {[%clk 0:00:15.9]} 41. b3
{[%clk 0:00:10.8]} 41... Rd8 {[%clk 0:00:15.4]} 42. Qxa7+ {[%clk 0:00:10.6]}
42... Rd7 {[%clk 0:00:15.2]} 43. Qb6 {[%clk 0:00:05.5]} 43... Qxd5 {[%clk
0:00:14.7]} 44. a4 {[%clk 0:00:05.3]} 44... Qd2+ {[%clk 0:00:14.7]} 45. Ka3
{[%clk 0:00:05.3]} 45... Qc1+ {[%clk 0:00:13.4]} 46. Kb4 {[%clk 0:00:04.3]}
46... Qe1+ {[%clk 0:00:13.5]} 47. Kb5 {[%clk 0:00:03.7]} 47... Re7 {[%clk
0:00:14.1]} 0-1

[Event "*** Titled Tuesday Blitz"]
[Site "Chess.com"]
[Date "2020.04.14"]
[Round "5"]
[White "IAgrest"]
[Black "Egorov_Pavel"]
[Result "0-1"]
[WhiteElo "2217"]
[BlackElo "2403"]
[TimeControl "180+1"]
[EndTime "10:51:33 PDT"]
[Termination "Egorov_Pavel won on time"]

1. e4 {[%clk 0:03:00.9]} 1... Nf6 {[%clk 0:03:00.4]} 2. e5 {[%clk 0:03:00.1]}
2... Nd5 {[%clk 0:03:00.4]} 3. d4 {[%clk 0:03:00.1]} 3... d6 {[%clk 0:03:00.7]}
4. c4 {[%clk 0:03:00.3]} 4... Nb6 {[%clk 0:03:01]} 5. exd6 {[%clk 0:03:00.9]}
5... cxd6 {[%clk 0:03:01.9]} 6. Nc3 {[%clk 0:03:00.6]} 6... g6 {[%clk
0:03:02.2]} 7. Be3 {[%clk 0:03:01.2]} 7... Bg7 {[%clk 0:03:02.6]} 8. Rc1 {[%clk
0:03:01.9]} 8... O-O {[%clk 0:03:02.9]} 9. b3 {[%clk 0:03:02.6]} 9... Bf5 {[%clk
0:03:00.8]} 10. Be2 {[%clk 0:02:58.6]} 10... d5 {[%clk 0:02:59.1]} 11. c5 {[%clk
0:02:44.2]} 11... Nc8 {[%clk 0:02:59.5]} 12. b4 {[%clk 0:02:40.8]} 12... a6
{[%clk 0:02:57.2]} 13. Bf3 {[%clk 0:02:34]} 13... Nc6 {[%clk 0:02:09.4]} 14. a3
{[%clk 0:02:13.2]} 14... e6 {[%clk 0:02:03.1]} 15. Nge2 {[%clk 0:02:02.7]} 15...
h5 {[%clk 0:02:01]} 16. O-O {[%clk 0:01:55.4]} 16... N8e7 {[%clk 0:01:56.9]} 17.
h3 {[%clk 0:01:54.1]} 17... h4 {[%clk 0:01:44.6]} 18. Bg5 {[%clk 0:01:48.1]}
18... Be4 {[%clk 0:01:28.9]} 19. Bxe4 {[%clk 0:01:38.6]} 19... dxe4 {[%clk
0:01:27.7]} 20. Nxe4 {[%clk 0:01:30.1]} 20... Qd5 {[%clk 0:01:09.6]} 21. N2c3
{[%clk 0:01:09.8]} 21... Qxd4 {[%clk 0:01:05.4]} 22. Qxd4 {[%clk 0:00:59.1]}
22... Bxd4 {[%clk 0:01:06.3]} 23. Bxh4 {[%clk 0:00:55.9]} 23... Nf5 {[%clk
0:01:06.6]} 24. Bf6 {[%clk 0:00:53.2]} 24... Bxf6 {[%clk 0:01:01.3]} 25. Nxf6+
{[%clk 0:00:53]} 25... Kg7 {[%clk 0:01:01.8]} 26. Nd7 {[%clk 0:00:47.3]} 26...
Rfd8 {[%clk 0:00:58]} 27. Rcd1 {[%clk 0:00:44.6]} 27... Ncd4 {[%clk 0:00:57]}
28. Nb6 {[%clk 0:00:43.9]} 28... a5 {[%clk 0:00:49.1]} 29. Nxa8 {[%clk
0:00:40.3]} 29... axb4 {[%clk 0:00:49]} 30. axb4 {[%clk 0:00:39.9]} 30... Rxa8
{[%clk 0:00:49.4]} 31. g4 {[%clk 0:00:20.6]} 31... Nf3+ {[%clk 0:00:49.2]} 32.
Kg2 {[%clk 0:00:20.4]} 32... N5h4+ {[%clk 0:00:49.7]} 33. Kg3 {[%clk 0:00:19.7]}
33... Ra3 {[%clk 0:00:50.3]} 34. Rc1 {[%clk 0:00:19]} 34... Nd2 {[%clk
0:00:48.1]} 35. Rfe1 {[%clk 0:00:16.5]} 35... g5 {[%clk 0:00:37.7]} 36. Re3
{[%clk 0:00:14.7]} 36... f5 {[%clk 0:00:32.4]} 37. gxf5 {[%clk 0:00:12.9]} 37...
Nxf5+ {[%clk 0:00:33.3]} 38. Kh2 {[%clk 0:00:11.6]} 38... Nxe3 {[%clk
0:00:33.8]} 39. fxe3 {[%clk 0:00:12.5]} 39... Nf3+ {[%clk 0:00:28.7]} 40. Kg3
{[%clk 0:00:12]} 40... Ne5 {[%clk 0:00:28.5]} 41. Kg2 {[%clk 0:00:08.6]} 41...
Rb3 {[%clk 0:00:25.9]} 42. Rc2 {[%clk 0:00:07.1]} 42... Rxb4 {[%clk 0:00:24.2]}
43. Kf2 {[%clk 0:00:06.8]} 43... Rc4 {[%clk 0:00:22.6]} 44. Ke2 {[%clk
0:00:06.6]} 44... Rxc5 {[%clk 0:00:23.2]} 45. Kd2 {[%clk 0:00:02]} 45... Nc4+
{[%clk 0:00:23.6]} 46. Kd3 {[%clk 0:00:01.6]} 46... Na3 {[%clk 0:00:24.5]} 47.
Rb2 {[%clk 0:00:01.2]} 47... b5 {[%clk 0:00:23.5]} 0-1

[Event "*** Titled Tuesday Blitz"]
[Site "Chess.com"]
[Date "2020.04.14"]
[Round "5"]
[White "profofchess"]
[Black "grzechu96"]
[Result "0-1"]
[WhiteElo "2398"]
[BlackElo "2590"]
[TimeControl "180+1"]
[EndTime "10:51:34 PDT"]
[Termination "grzechu96 won on time"]

1. e4 {[%clk 0:03:00.9]} 1... c5 {[%clk 0:02:58.8]} 2. Nf3 {[%clk 0:03:00.5]}
2... d6 {[%clk 0:02:59.2]} 3. c3 {[%clk 0:02:59.9]} 3... Nf6 {[%clk 0:02:58.7]}
4. Bc4 {[%clk 0:03:00.5]} 4... Nc6 {[%clk 0:02:53.5]} 5. Qe2 {[%clk 0:02:59.1]}
5... Bg4 {[%clk 0:02:50.8]} 6. h3 {[%clk 0:02:55.2]} 6... Bxf3 {[%clk
0:02:50.7]} 7. Qxf3 {[%clk 0:02:55.1]} 7... Ne5 {[%clk 0:02:49.5]} 8. Bb5+
{[%clk 0:02:51.8]} 8... Nfd7 {[%clk 0:02:46.6]} 9. Qe2 {[%clk 0:02:50]} 9... a6
{[%clk 0:02:45]} 10. Bxd7+ {[%clk 0:02:30.5]} 10... Qxd7 {[%clk 0:02:40.5]} 11.
d4 {[%clk 0:02:28.9]} 11... cxd4 {[%clk 0:02:40.6]} 12. cxd4 {[%clk 0:02:29.8]}
12... Nc6 {[%clk 0:02:38.7]} 13. Be3 {[%clk 0:02:25.2]} 13... g6 {[%clk
0:02:33]} 14. d5 {[%clk 0:02:14.9]} 14... Nd8 {[%clk 0:02:13]} 15. Bd4 {[%clk
0:02:09.7]} 15... f6 {[%clk 0:02:13.3]} 16. Nc3 {[%clk 0:02:07.9]} 16... Bg7
{[%clk 0:02:13.1]} 17. O-O {[%clk 0:02:06.7]} 17... O-O {[%clk 0:02:13.2]} 18.
Rae1 {[%clk 0:01:57.7]} 18... Rc8 {[%clk 0:02:11.2]} 19. f4 {[%clk 0:01:52.6]}
19... Nf7 {[%clk 0:02:10.7]} 20. Kh1 {[%clk 0:01:51.4]} 20... b5 {[%clk
0:02:04.3]} 21. a3 {[%clk 0:01:50.1]} 21... Rc4 {[%clk 0:01:58.4]} 22. Qd3
{[%clk 0:01:46.1]} 22... Rfc8 {[%clk 0:01:40]} 23. Rc1 {[%clk 0:01:41.7]} 23...
f5 {[%clk 0:01:35.1]} 24. Bxg7 {[%clk 0:01:22.5]} 24... fxe4 {[%clk 0:01:34.9]}
25. Qe3 {[%clk 0:01:03.2]} 25... Kxg7 {[%clk 0:01:34.6]} 26. b3 {[%clk
0:01:03.2]} 26... R4c5 {[%clk 0:01:25.2]} 27. Qxe4 {[%clk 0:01:02]} 27... Qf5
{[%clk 0:01:13]} 28. Qd4+ {[%clk 0:00:57.8]} 28... Qf6 {[%clk 0:01:10.6]} 29.
Qxf6+ {[%clk 0:00:42.6]} 29... exf6 {[%clk 0:01:11.5]} 30. Ne2 {[%clk
0:00:40.8]} 30... Rxc1 {[%clk 0:00:30.8]} 31. Rxc1 {[%clk 0:00:41.7]} 31...
Rxc1+ {[%clk 0:00:31.1]} 32. Nxc1 {[%clk 0:00:41.6]} 32... g5 {[%clk 0:00:31.7]}
33. Nd3 {[%clk 0:00:28.3]} 33... gxf4 {[%clk 0:00:12.3]} 34. Nxf4 {[%clk
0:00:29.2]} 34... Ng5 {[%clk 0:00:12.7]} 35. g4 {[%clk 0:00:17.3]} 35... Kf7
{[%clk 0:00:11.6]} 36. Kg2 {[%clk 0:00:16.2]} 36... Ne4 {[%clk 0:00:12.1]} 37.
Ne6 {[%clk 0:00:06.6]} 37... a5 {[%clk 0:00:10.9]} 38. b4 {[%clk 0:00:05.8]}
38... a4 {[%clk 0:00:09.9]} 39. Nc7 {[%clk 0:00:05.4]} 39... Nc3 {[%clk
0:00:10]} 40. Kf3 {[%clk 0:00:05.5]} 40... Ke7 {[%clk 0:00:10.5]} 41. Ke3 {[%clk
0:00:05.4]} 41... Kd7 {[%clk 0:00:11.1]} 42. Kd3 {[%clk 0:00:05.7]} 42... Nd1
{[%clk 0:00:05]} 43. Nxb5 {[%clk 0:00:05.2]} 43... Nf2+ {[%clk 0:00:05.8]} 44.
Ke3 {[%clk 0:00:02.9]} 44... Nxh3 {[%clk 0:00:06.5]} 45. Nc3 {[%clk 0:00:02.8]}
45... Ng5 {[%clk 0:00:05.7]} 46. Nxa4 {[%clk 0:00:03.7]} 46... Nf7 {[%clk
0:00:05.2]} 0-1

[Event "*** Titled Tuesday Blitz"]
[Site "Chess.com"]
[Date "2020.04.14"]
[Round "5"]
[White "beto-betun"]
[Black "IMUffeVinther-Schou"]
[Result "0-1"]
[WhiteElo "2100"]
[BlackElo "2324"]
[TimeControl "180+1"]
[EndTime "10:51:35 PDT"]
[Termination "IMUffeVinther-Schou won on time"]

1. d4 {[%clk 0:03:00.9]} 1... Nf6 {[%clk 0:02:58.8]} 2. Nf3 {[%clk 0:02:59.2]}
2... e6 {[%clk 0:02:57.9]} 3. g3 {[%clk 0:02:58.1]} 3... c5 {[%clk 0:02:57.4]}
4. Bg2 {[%clk 0:02:52.7]} 4... Nc6 {[%clk 0:02:55.9]} 5. c4 {[%clk 0:02:46.6]}
5... cxd4 {[%clk 0:02:55.1]} 6. Nxd4 {[%clk 0:02:47.5]} 6... Qb6 {[%clk
0:02:54.6]} 7. Nxc6 {[%clk 0:02:38.8]} 7... bxc6 {[%clk 0:02:54.1]} 8. O-O
{[%clk 0:02:37.1]} 8... Be7 {[%clk 0:02:50.1]} 9. b3 {[%clk 0:02:34.7]} 9... O-O
{[%clk 0:02:46.6]} 10. Bb2 {[%clk 0:02:34.6]} 10... a5 {[%clk 0:02:44]} 11. Nc3
{[%clk 0:02:26.8]} 11... d5 {[%clk 0:02:38.1]} 12. cxd5 {[%clk 0:02:24.4]} 12...
cxd5 {[%clk 0:02:37.1]} 13. e4 {[%clk 0:02:06.2]} 13... Ba6 {[%clk 0:02:36]} 14.
Re1 {[%clk 0:01:40]} 14... dxe4 {[%clk 0:02:35.1]} 15. Nxe4 {[%clk 0:01:38.9]}
15... Nxe4 {[%clk 0:02:33.3]} 16. Bxe4 {[%clk 0:01:39]} 16... Rad8 {[%clk
0:02:32.8]} 17. Qf3 {[%clk 0:01:33.5]} 17... Rd2 {[%clk 0:02:18.7]} 18. Bc1
{[%clk 0:00:51.3]} 18... Rd7 {[%clk 0:01:44.4]} 19. Be3 {[%clk 0:00:50.2]} 19...
Qb4 {[%clk 0:01:41.7]} 20. Rac1 {[%clk 0:00:47.4]} 20... Rfd8 {[%clk 0:01:32.4]}
21. Bb1 {[%clk 0:00:39.4]} 21... Bb7 {[%clk 0:01:28.6]} 22. Qh5 {[%clk
0:00:29.7]} 22... g6 {[%clk 0:01:27.8]} 23. Qh6 {[%clk 0:00:20.5]} 23... Bf6
{[%clk 0:01:14.3]} 24. h4 {[%clk 0:00:19.3]} 24... Bg7 {[%clk 0:01:11.5]} 25.
Qf4 {[%clk 0:00:19.3]} 25... Qb5 {[%clk 0:00:58.3]} 26. Rc5 {[%clk 0:00:07.4]}
26... Qa6 {[%clk 0:00:46.2]} 27. Bc2 {[%clk 0:00:07.4]} 27... Ba8 {[%clk
0:00:44.7]} 28. h5 {[%clk 0:00:07.4]} 28... Qb7 {[%clk 0:00:43.9]} 29. f3 {[%clk
0:00:07.2]} 29... Qxf3 {[%clk 0:00:42.3]} 30. Qxf3 {[%clk 0:00:08.1]} 30... Bxf3
{[%clk 0:00:42]} 31. hxg6 {[%clk 0:00:09]} 31... hxg6 {[%clk 0:00:41.1]} 32. Rf1
{[%clk 0:00:06.3]} 32... Bd1 {[%clk 0:00:30.8]} 33. Be4 {[%clk 0:00:04.4]} 33...
Be2 {[%clk 0:00:26.4]} 34. Rf2 {[%clk 0:00:04.9]} 34... Rd1+ {[%clk 0:00:23.8]}
35. Kg2 {[%clk 0:00:05.4]} 35... Bg4 {[%clk 0:00:19.9]} 36. Rc7 {[%clk 0:00:05]}
36... f5 {[%clk 0:00:18]} 37. Bb7 {[%clk 0:00:03.6]} 37... Re1 {[%clk
0:00:16.1]} 38. Bf4 {[%clk 0:00:03.5]} 38... Rdd1 {[%clk 0:00:13.5]} 39. Bg5
{[%clk 0:00:02.8]} 39... Bd4 {[%clk 0:00:09.4]} 40. Rfc2 {[%clk 0:00:01.4]}
40... Re2+ {[%clk 0:00:05.8]} 0-1

[Event "*** Titled Tuesday Blitz"]
[Site "Chess.com"]
[Date "2020.04.14"]
[Round "5"]
[White "willc-h99"]
[Black "leopato"]
[Result "0-1"]
[WhiteElo "2301"]
[BlackElo "2108"]
[TimeControl "180+1"]
[EndTime "10:51:35 PDT"]
[Termination "leopato won on time"]

1. c4 {[%clk 0:03:00.9]} 1... Nf6 {[%clk 0:02:58.9]} 2. g3 {[%clk 0:03:00.6]}
2... Nc6 {[%clk 0:02:54.2]} 3. Bg2 {[%clk 0:03:00.6]} 3... d6 {[%clk 0:02:54.6]}
4. Nc3 {[%clk 0:03:00.2]} 4... g6 {[%clk 0:02:54.8]} 5. d3 {[%clk 0:03:00.2]}
5... Bg7 {[%clk 0:02:55.1]} 6. e4 {[%clk 0:03:00.8]} 6... O-O {[%clk 0:02:55.4]}
7. Nge2 {[%clk 0:03:00.8]} 7... a6 {[%clk 0:02:54.5]} 8. O-O {[%clk 0:03:00.1]}
8... Rb8 {[%clk 0:02:54.6]} 9. a4 {[%clk 0:03:00.4]} 9... Bd7 {[%clk 0:02:48.2]}
10. h3 {[%clk 0:02:57.4]} 10... Nb4 {[%clk 0:02:46.6]} 11. Be3 {[%clk
0:02:54.5]} 11... c5 {[%clk 0:02:45.9]} 12. Kh2 {[%clk 0:02:43.6]} 12... Bc6
{[%clk 0:02:36.9]} 13. d4 {[%clk 0:02:41.1]} 13... cxd4 {[%clk 0:02:32.9]} 14.
Nxd4 {[%clk 0:02:40.5]} 14... Nd7 {[%clk 0:02:27.9]} 15. Qd2 {[%clk 0:02:27.1]}
15... Ne5 {[%clk 0:02:24.7]} 16. b3 {[%clk 0:02:21.2]} 16... Bd7 {[%clk
0:02:12.2]} 17. Nd5 {[%clk 0:02:11.8]} 17... Nxd5 {[%clk 0:02:02.7]} 18. exd5
{[%clk 0:01:56.5]} 18... Bc8 {[%clk 0:01:45.4]} 19. f4 {[%clk 0:01:47.3]} 19...
Nd7 {[%clk 0:01:43.5]} 20. a5 {[%clk 0:01:39.1]} 20... Nc5 {[%clk 0:01:41.6]}
21. Rab1 {[%clk 0:01:13.2]} 21... e5 {[%clk 0:01:35.1]} 22. dxe6 {[%clk
0:01:08.3]} 22... fxe6 {[%clk 0:01:34.7]} 23. b4 {[%clk 0:01:05.6]} 23... e5
{[%clk 0:01:27.6]} 24. bxc5 {[%clk 0:00:48.2]} 24... exd4 {[%clk 0:01:24.4]} 25.
Bxd4 {[%clk 0:00:45.1]} 25... dxc5 {[%clk 0:01:19.8]} 26. Bd5+ {[%clk 0:00:45]}
26... Kh8 {[%clk 0:01:18.9]} 27. Bxc5 {[%clk 0:00:35.5]} 27... Re8 {[%clk
0:01:12.5]} 28. Rfe1 {[%clk 0:00:33.1]} 28... Bf5 {[%clk 0:00:54.1]} 29. Rxe8+
{[%clk 0:00:26.2]} 29... Qxe8 {[%clk 0:00:55]} 30. Re1 {[%clk 0:00:24.4]} 30...
Qc8 {[%clk 0:00:43.6]} 31. Bd4 {[%clk 0:00:23.8]} 31... Qd7 {[%clk 0:00:34.2]}
32. Bxg7+ {[%clk 0:00:21]} 32... Qxg7 {[%clk 0:00:35.1]} 33. g4 {[%clk
0:00:19.8]} 33... Bd7 {[%clk 0:00:29.7]} 34. Re5 {[%clk 0:00:19.7]} 34... Bc6
{[%clk 0:00:23.6]} 35. Qe3 {[%clk 0:00:19.1]} 35... Rf8 {[%clk 0:00:18.1]} 36.
Bxc6 {[%clk 0:00:14.7]} 36... bxc6 {[%clk 0:00:19]} 37. Kg3 {[%clk 0:00:14.9]}
37... h6 {[%clk 0:00:18]} 38. Re8 {[%clk 0:00:11.8]} 38... Kh7 {[%clk 0:00:16]}
39. Rxf8 {[%clk 0:00:06.4]} 39... Qxf8 {[%clk 0:00:16.9]} 40. Qa7+ {[%clk
0:00:06.3]} 40... Kh8 {[%clk 0:00:16]} 41. Qd4+ {[%clk 0:00:05.8]} 41... Kh7
{[%clk 0:00:15]} 42. c5 {[%clk 0:00:06.1]} 42... Qe7 {[%clk 0:00:09.5]} 43. Qe5
{[%clk 0:00:06.1]} 43... Qb7 {[%clk 0:00:07.4]} 44. Qe3 {[%clk 0:00:02.2]} 44...
Qd7 {[%clk 0:00:06.5]} 0-1